{"text_format":"1","workbook":"xlsx","n_sheets":4,"sheets":["Arkusz1","Arkusz2","Arkusz3","Arkusz4"],"not_rendered":{"charts":0,"images":0,"macros":1,"external_links":0,"defined_names":0,"comments":0,"pivot_tables":0},"unopened":[],"bounds":{"document_bytes":16777216,"sheet_cells":100000,"rows_first":2000,"rows_last":500,"rows_between":2000,"halvings":0,"cell_chars":16384,"cell_head_chars":4096},"cells_cut":0,"cells_raw":0,"read":"whole","date_system":"1900"}

{"sheet":"Arkusz1","index":0,"n_rows":36,"n_cols":23,"rows_kept":36,"cut":false,"hidden":false,"merged":[[8,0,8,9],[1,0,1,9],[1,11,1,19],[35,2,35,9],[15,0,15,9],[29,10,29,19],[31,10,31,19],[9,0,9,9],[12,0,12,9]]}
[]
["Dochody opodatkowane podatkiem dochodowym od osób fizycznych na zas.ogólnych bądź dochody z ryczałtu",null,null,null,null,null,null,null,null,null,null,"Składki zdrowotne"]
[null,"osoba 1","osoba 2","osoba 3","osoba 4","osoba 5","osoba 6","osoba 7","osoba 8","osoba 9",null,"skł. zdr. osoby 1","skł. zdr. osoby 2","skł. zdr. osoby 3","skł. zdr. osoby 4","skł. zdr. osoby 5","skł. zdr. osoby 6","skł. zdr. osoby 7","skł. zdr. osoby 8","skł. zdr. osoby 9",null,"hap","alimenty"]
["dochód brutto",null,null,null,null,null,null,null,null,null,null,null,null,null,null,null,null,null,null,null,null,2715,12]
["podatek"]
["składka na ubezp. społeczne"]
["suma składek na ubezp. zdrowotne",{"$f":"L19","v":0},{"$f":"M19","v":0},0,0,0,0,0,0,0]
["dochód netto (tę kwotę wpisać do Edukacji)",{"$f":"B4-B5-B6-B7","v":0},{"$f":"C4-C5-C6-C7","v":0},0,0,0,0,0,0,0]
["DOCHODY NIEOPODATKOWANE  "]
["GOSPODARSTWO ROLNE"]
["liczba hektarów przeliczeniowych"]
["dochód z gospodarstwa rolnego",{"$f":"B11*$V$4","v":0},0,0,0,0,0,0,0,0]
["ALIMENTY"]
["wysokość zasądzonych alimentów"]
["dochód roczny z alimentów",{"$f":"B14*12","v":0},{"$f":"C14*12","v":0},0,0,0,0,0,0,0]
["INNE DOCHODY NIEOPODATKOWANE"]
["zaliczka alimentacyjna (MOPS)- rocznie"]
["ulga na dzieci - dochody z Ulg-1 (wpisujemy w zał. nr 11)"]
["dochody z zagranicy ( pit - ZG)",null,null,null,null,null,null,null,null,null,null,{"$f":"SUM(L4:L18)","v":0},{"$f":"SUM(M4:M18)","v":0},0,0,0,0,0,0,0]
["zasiłek chorobowy z KRUS - rolnicy"]
["inne nie wymienione wyżej"]
["dochody nieopodatkowane łącznie (tę kwotę wpisać do Edukacji)",{"$f":"B21+B20+B19+B18+B17+B15+B12","v":0},0,0,0,0,0,0,0,0]
["dochód członków rodziny łącznie",{"$f":"B22+B8","v":0},0,0,0,0,0,0,0,0]
[]
["dochód łączny rodziny",{"$f":"B23+C23+D23+E23+F23+G23+H23+I23+J23","v":0}]
["dochód miesięczny",{"$f":"B25/12","v":0}]
["liczba osób w rodzinie",null,"<<<  wpisać liczbę osób w rodzinie!"]
["Wysokość miesięcznego dochodu na członka rodziny",{"$f":"B25/B27/12","v":{"$error":"#DIV/0!"}}]
["Alimenty świadczone na rzecz innych osób",0,null,null,0,0,0,0,0,0]
["Dochód utracony (wysokość dochodu do utraty w wysokości rocznej)",null,null,null,null,null,null,null,null,null,"informacja - jeżeli dana osoba pracowala w roku bazowym i utraciła pracę, od dochodu rodziny odliczamy ten dochód; tu proszę wpisać wysokość roczną dochodu netto do utraty"]
["Dochód utracony (wysokość miesięczna) ",{"$f":"B30/12","v":0},{"$f":"C30/12","v":0},0,0,0,0,0,0,0]
["Dochód uzyskany (wysokość dochodu uzyskanego w wysokości miesięcznej, np. wysokośc pensji)  ",null,null,null,null,null,null,null,null,null,"informacja - jeżeli dana osoba nie miała dochodu w roku bazowym, a rozpczęła pracę teraz, do dochodu rodziny doliczamy dochód za miesiąc następujący po miesiacu, w którym po raz pierwszy wystąpił dochód - tę kwotę należy wpisać jako dochód uzyskany w zakładce \"dochód łączny rodziny)"]
["dochód utracony łącznie - tę kwotę wpisać do Edukacji",{"$f":"B31+C31+D31+E31+F31+G31+H31+I31+J31","v":0}]
["dochód uzyskany łącznie - tę kwotę wpisać do Edukacji",{"$f":"B32+C32+D32+E32+F32+G32+H32+I32+J32","v":0}]
["Dochód po zmianach",{"$f":"B26-B33+B34","v":0}]
["Dochód na członka rodziny",{"$f":"B35/B27","v":{"$error":"#DIV/0!"}},"kwota brana pod uwagę przy ocenie wniosku"]

{"sheet":"Arkusz2","index":1,"n_rows":0,"n_cols":0,"rows_kept":0,"cut":false,"hidden":false,"merged":[]}

{"sheet":"Arkusz3","index":2,"n_rows":0,"n_cols":0,"rows_kept":0,"cut":false,"hidden":false,"merged":[]}

{"sheet":"Arkusz4","index":3,"n_rows":0,"n_cols":0,"rows_kept":0,"cut":false,"hidden":false,"merged":[]}